bitfinex-derivatives/quotes_ETHF0:USTF0_20260312
["timestamp","ask_amount","ask_price","bid_price","bid_amount"]
[1773317946320,3.00382789,2062.5,2061.6,2.91134099]
[1773317952124,3.00382789,2062.5,2061.6,0.00578738]
[1773317952726,3.00382789,2062.5,2061.6,2.91134099]
[1773317953232,3.00382789,2062.5,2061.6,0.00578738]
[1773317954433,3.24670789,2062.5,2061.6,0.00578738]
[1773317955033,3.24670789,2062.5,2061.6,2.91134099]
[1773317955236,3.00382789,2062.5,2061.6,2.91134099]
[1773317955428,3.24654789,2062.5,2061.6,2.91134099]
[1773317955629,3.24763789,2062.5,2061.6,2.91134099]
[1773317956433,3.25177789,2062.5,2061.6,2.91134099]
[1773317956628,3.00382789,2062.5,2061.6,2.91134099]
[1773317960036,0.00359239,2062.5,2061.6,2.91134099]
[1773317960240,0.00359239,2062.5,2061.9,2.86851492]
[1773317960740,2.92002973,2062.5,2061.9,2.86851492]
[1773317961050,0.00359239,2062.5,2061.9,2.86851492]
[1773317961741,2.91643734,2063.2,2062.2,2.86851492]
[1773317962840,2.92229701,2063.2,2062.2,2.86851492]
[1773317966836,2.92229701,2063.2,2062.2,3.11092492]
[1773317967037,2.92229701,2063.2,2062.5,2.86851492]
[1773317967238,0.00585967,2063.2,2062.5,2.86851492]
[1773317968741,2.92229701,2063.2,2062.5,2.86851492]
[1773317969041,2.92229701,2063.2,2062.3,2.86851492]
[1773317972440,2.92229701,2063.2,2062.5,2.86851492]
[1773317976848,0.00585967,2063.2,2062.5,2.86851492]
[1773317978049,2.92229701,2063.2,2062.5,2.86851492]
[1773317982455,0.00585967,2063.2,2062.5,2.86851492]
[1773317983355,2.91643734,2063.9,2062.8,2.86851492]
[1773317983755,2.91643734,2063.9,2063.0,2.95763658]
[1773317984153,2.91991967,2063.9,2063.0,2.95763658]
[1773317985157,3.16214967,2063.9,2062.8,2.95763658]
[1773317987657,3.16214967,2063.9,2062.6,2.95763658]
[1773317988057,2.75891479,2063.5,2062.6,2.95763658]
[1773317991156,2.75891479,2063.5,2062.8,2.89554206]
[1773317991651,2.75891479,2063.5,2062.9,0.24234]
[1773317991857,3.03805681,2063.6,2063.0,2.89554206]
[1773317992651,3.03805681,2063.8,2063.0,2.89554206]
[1773317993361,3.03805681,2063.3,2062.7,2.89554206]
[1773317993560,3.03805681,2063.3,2062.5,2.89554206]
[1773317997661,3.03805681,2063.3,2062.6,2.89554206]
[1773318000162,3.03805681,2063.3,2062.4,2.89554206]
[1773318000770,3.03805681,2063.1,2062.1,2.89554206]
[1773318001665,5.71577965,2063.0,2062.1,2.89554206]
[1773318001864,3.03805681,2062.9,2062.1,2.89554206]
[1773318002672,3.03805681,2062.7,2061.8,13.07454206]
[1773318002969,3.03805681,2062.7,2061.9,2.89554206]
[1773318004965,3.03805681,2062.7,2061.7,2.89554206]
[1773318005768,3.03805681,2062.7,2061.6,0.00578738]
[1773318005970,3.03805681,2062.5,2061.6,0.00578738]
[1773318006173,3.28156681,2062.5,2061.6,0.00578738]
[1773318006671,3.03805681,2062.3,2061.6,0.00578738]
[1773318006872,3.04331957,2062.3,2061.6,0.00578738]
[1773318007267,3.28621957,2062.3,2061.6,0.00578738]
[1773318007469,3.28607957,2062.3,2061.6,0.00578738]
[1773318008577,3.28607957,2062.3,2061.1,2.89554206]
[1773318008877,3.29401681,2062.1,2061.1,2.89554206]
[1773318009582,3.29401681,2062.1,2061.1,2.90174411]
[1773318009967,3.03805681,2062.1,2061.1,2.90174411]
[1773318012380,3.04331957,2062.3,2061.1,2.90174411]
[1773318013375,3.04331957,2062.3,2061.3,2.89554206]
[1773318013574,3.04331957,2062.3,2061.5,2.89554206]
[1773318014479,0.00526276,2062.3,2061.5,2.89554206]
[1773318014672,0.00526276,2062.3,2061.7,2.89554206]
[1773318017780,0.00526276,2062.3,2061.7,3.14061206]
[1773318019482,0.00526276,2062.3,2061.7,3.14006206]
[1773318019979,3.03805681,2062.6,2061.7,3.14006206]
[1773318021182,3.04213635,2062.6,2061.7,3.38626626]
[1773318022877,3.04213635,2062.6,2061.7,3.14174626]
[1773318024783,3.04213635,2062.6,2061.9,2.8954968]
[1773318025783,0.00407954,2062.6,2061.9,2.8954968]
[1773318026182,2.8939881,2062.6,2061.9,2.8954968]
[1773318029089,2.88990856,2062.8,2062.1,2.8954968]
[1773318030177,2.89531121,2062.8,2062.1,2.8954968]
[1773318030584,0.00540265,2062.8,2062.1,2.8954968]
[1773318030786,2.88990856,2063.0,2062.1,2.8954968]
[1773318031683,2.8949332,2063.0,2062.1,2.8954968]
[1773318035192,2.8949332,2063.0,2062.1,3.1397568]
[1773318037187,2.8949332,2063.0,2062.1,2.8954968]
[1773318037386,2.8949332,2063.0,2062.1,3.1385268]
[1773318037587,2.8949332,2063.0,2062.1,3.1395768]
[1773318037989,2.8949332,2063.0,2062.3,3.1512368]
[1773318038191,2.8949332,2063.0,2062.5,3.1502068]
[1773318039396,2.8949332,2063.0,2062.5,2.8954968]
[1773318039595,2.8949332,2063.0,2062.1,2.8954968]
[1773318042900,2.8949332,2063.0,2062.0,0.24174478]
[1773318043200,2.8949332,2063.0,2062.0,2.8954968]
[1773318045095,2.8949332,2063.0,2062.1,2.87204207]
[1773318046599,2.8949332,2063.0,2061.9,17.95154205]
[1773318046600,2.8949332,2063.0,2062.3,2.87204207]
[1773318047299,2.91995633,2063.0,2062.5,2.87204207]
[1773318047498,0.00502464,2063.0,2062.5,2.87204207]
[1773318047700,2.91995633,2063.0,2062.5,2.87204207]
[1773318050398,2.91995633,2063.0,2062.2,2.99200277]
[1773318051502,2.91995633,2063.0,2062.0,2.99200277]
[1773318052203,2.91995633,2063.0,2061.9,0.23805872]
[1773318052399,2.84181661,2062.8,2061.9,2.99200277]
[1773318053907,2.84181661,2062.7,2061.7,2.99200277]
[1773318054104,2.84181661,2062.7,2061.6,2.99200277]
[1773318054305,2.84181661,2062.5,2061.6,2.99200277]
[1773318055509,2.84181661,2062.9,2062.0,4.29802178]
[1773318055815,2.84181661,2062.9,2062.0,2.99200277]
[1773318060117,2.84181661,2062.8,2062.0,2.99200277]
[1773318064116,2.84181661,2062.8,2061.6,2.99200277]
[1773318064421,2.84181661,2062.6,2061.6,2.99200277]
[1773318064822,2.84181661,2062.4,2061.2,2.99200277]
[1773318065023,2.84181661,2062.2,2061.2,2.99200277]
[1773318065222,2.84181661,2062.1,2061.2,2.99200277]
[1773318065725,2.84181661,2062.0,2061.2,2.99200277]
[1773318066616,2.84181661,2061.9,2061.2,2.99200277]
[1773318067830,2.84181661,2062.2,2061.2,2.99200277]
[1773318068124,2.84181661,2062.1,2061.2,2.99200277]
[1773318069630,2.84181661,2061.9,2061.2,2.99200277]
[1773318071433,2.84181661,2062.0,2061.2,2.99200277]
[1773318072131,3.08421661,2062.4,2061.5,2.99200277]
[1773318072326,2.84181661,2062.4,2061.5,2.99200277]
[1773318072831,2.84181661,2062.4,2061.2,2.99200277]
[1773318073922,2.84181661,2062.4,2061.5,2.99200277]
[1773318074930,2.84181661,2062.4,2061.3,2.99200277]
[1773318077034,12.81381661,2062.3,2061.3,2.99200277]
[1773318077336,9.972,2062.6,2061.6,3.23449277]
[1773318077540,2.84181661,2062.5,2061.6,3.23449277]
[1773318077837,0.00502464,2063.0,2061.9,3.23444277]
[1773318078137,2.84181661,2062.9,2062.2,2.99200277]
[1773318080041,2.84181661,2062.8,2062.2,2.99200277]
[1773318085135,0.00502464,2063.0,2062.2,2.99200277]
[1773318085638,3.01721057,2063.0,2062.2,2.99200277]
[1773318086230,3.01721057,2063.0,2061.9,8.06130354]
[1773318086231,3.01721057,2063.0,2061.9,3.11108979]
[1773318087840,3.01218593,2062.8,2061.9,3.11108979]
[1773318092540,3.01218593,2062.8,2062.1,3.11108979]
[1773318096147,3.01218593,2062.8,2061.7,3.11108979]
[1773318099748,3.01218593,2062.7,2062.2,3.11108979]
[1773318100148,3.01218593,2062.7,2062.4,3.11108979]
[1773318100649,3.01218593,2062.9,2062.4,3.11108979]
[1773318100852,3.01218593,2062.8,2062.4,3.11108979]
[1773318102653,3.01218593,2062.8,2062.2,3.11108979]
[1773318104148,12.97018593,2062.8,2062.2,3.11108979]
[1773318104455,3.01428286,2062.7,2062.2,3.11108979]
[1773318107555,3.01428286,2062.7,2062.0,3.05682617]
[1773318113862,3.01428286,2062.7,2061.8,2.92362238]
[1773318117867,3.01428286,2062.7,2061.7,7.57610205]
[1773318118166,3.04986493,2062.5,2061.7,2.92362238]
[1773318120265,3.05488957,2063.0,2062.1,2.92362238]
[1773318120471,0.00502464,2063.0,2062.4,2.92362238]
[1773318120769,3.05488957,2063.0,2062.4,2.92362238]
[1773318123574,3.05488957,2063.0,2062.6,2.92362238]
[1773318123869,3.05488957,2063.0,2062.6,2.927463]
[1773318133881,3.05488957,2063.0,2062.6,0.00384062]
[1773318134675,3.05488957,2063.0,2062.3,2.92362238]
[1773318135783,3.04986493,2062.8,2062.3,2.92721241]
[1773318137375,13.04086493,2062.9,2062.3,2.92721241]
[1773318138676,3.04986493,2062.9,2062.3,2.92721241]
[1773318142676,12.92442336,2063.0,2062.3,2.92721241]
[1773318142876,0.00502464,2063.0,2062.5,1.30530349]
[1773318143081,2.92039872,2063.2,2062.6,3.030007]
[1773318143977,2.92556067,2063.2,2062.6,3.030007]
[1773318144888,0.00516195,2063.2,2062.8,3.030007]
[1773318145182,0.00124909,2063.2,2062.8,3.030007]
[1773318145386,2.92164781,2063.2,2062.8,3.030007]
[1773318146784,0.00124909,2063.2,2062.8,3.030007]
[1773318147888,5.54850281,2064.0,2062.7,1.30530349]
[1773318147889,2.92039872,2063.8,2063.0,3.030007]
[1773318148383,10.006,2063.9,2063.2,3.030007]
[1773318148384,2.92039872,2063.9,2063.2,3.030007]
[1773318148589,2.92039872,2063.9,2063.4,3.030007]
[1773318148788,2.92039872,2064.0,2063.4,3.030007]
[1773318148989,2.92450038,2064.0,2063.4,3.030007]
[1773318149188,0.00410166,2064.0,2063.6,3.030007]
[1773318149884,1.29108356,2064.8,2063.7,1.30530349]
[1773318150090,2.92039872,2064.6,2064.0,3.030007]
[1773318150278,2.92039872,2064.6,2063.8,3.030007]
[1773318150478,2.92039872,2064.5,2063.8,3.030007]
[1773318150892,2.92633675,2064.5,2063.8,3.03459153]
[1773318151383,2.92633675,2064.5,2063.8,0.00458453]
[1773318151584,2.92633675,2064.5,2063.8,3.03459153]
[1773318152191,12.93333675,2064.5,2063.8,3.03459153]
[1773318152388,2.92039872,2064.4,2063.8,3.03459153]
[1773318152589,2.92633675,2064.5,2063.8,3.03459153]
[1773318154997,2.92633675,2064.5,2063.8,0.00458453]
[1773318156191,2.92633675,2064.5,2063.4,3.030007]
[1773318156392,2.92039872,2064.3,2063.4,3.030007]
[1773318157195,2.92039872,2064.3,2063.4,3.03605159]
[1773318157804,2.92039872,2064.3,2063.6,3.030007]
[1773318159303,12.93533675,2064.5,2063.7,1.30530349]
[1773318159610,12.93533675,2064.5,2063.8,3.030007]
[1773318160007,2.92039872,2064.4,2063.8,3.030007]
[1773318160810,10.01693803,2064.5,2063.8,3.030007]
[1773318161211,12.93733675,2064.5,2063.8,3.030007]
[1773318162412,2.92039872,2064.4,2063.8,3.030007]
[1773318165016,2.92039872,2064.4,2063.6,2.88091191]
[1773318167509,0.00593803,2064.5,2064.0,2.88091191]
[1773318167715,3.16062454,2064.5,2064.0,2.88091191]
[1773318167915,3.16062454,2064.5,2063.6,2.88091191]
[1773318168210,3.15468651,2065.0,2064.2,2.88091191]
[1773318168819,3.15468651,2064.8,2063.8,2.88091191]
[1773318169217,3.15468651,2064.6,2063.8,2.88091191]
[1773318170020,3.15468651,2064.5,2063.8,2.88091191]
[1773318171120,3.15468651,2064.5,2063.8,3.12474191]
[1773318171319,3.15468651,2064.5,2063.8,2.88091191]
[1773318171821,3.15468651,2064.5,2063.8,3.13325191]
[1773318173022,3.02245972,2064.6,2063.8,3.13325191]
[1773318173527,13.04871505,2064.8,2064.0,3.38951436]
[1773318174221,3.02245972,2064.7,2064.0,3.38951436]
[1773318176925,3.02245972,2064.7,2064.0,0.27418]
[1773318177525,3.02245972,2064.7,2064.0,3.38951436]
[1773318177827,3.02245972,2064.6,2064.0,3.38951436]
[1773318178626,3.02245972,2064.6,2064.0,0.2473]
[1773318178925,3.02245972,2064.6,2063.9,3.11533436]
[1773318179126,3.02245972,2064.6,2063.7,3.35756436]
[1773318179429,3.02245972,2064.6,2063.7,3.60081436]
[1773318179628,3.02245972,2064.6,2063.8,3.37918436]
[1773318180325,0.00625533,2064.8,2064.0,3.11533436]
[1773318180527,3.02871505,2064.8,2064.0,3.38971436]
[1773318181027,3.02871505,2064.8,2064.0,3.36188436]
[1773318181224,3.02871505,2064.8,2064.0,3.35833436]
[1773318181431,3.02871505,2064.8,2064.0,0.243]
[1773318181629,3.02871505,2064.8,2064.0,3.35833436]
[1773318181826,0.00625533,2064.8,2064.1,0.24219]
[1773318182024,3.02245972,2065.1,2064.7,3.11533436]
[1773318182425,3.02245972,2065.1,2064.7,3.36193436]
[1773318182928,3.02668533,2065.1,2064.7,3.36193436]
[1773318183631,3.02245972,2065.5,2064.7,3.11533436]
[1773318184721,3.02833012,2065.5,2064.7,3.11533436]
[1773318186130,3.02833012,2065.5,2064.4,3.11533436]
[1773318188031,13.05145972,2065.4,2064.6,3.11533436]
[1773318188433,3.02245972,2065.3,2064.6,3.36141436]
[1773318188632,3.02833012,2065.5,2064.6,3.36141436]
[1773318188827,3.02245972,2065.4,2064.6,3.36141436]
[1773318189033,3.02245972,2065.6,2064.8,3.11533436]
[1773318189232,3.02245972,2066.5,2065.2,3.11533436]
[1773318189432,3.02245972,2066.3,2065.4,3.11533436]
[1773318189635,3.02245972,2066.3,2065.1,3.11533436]
[1773318189838,3.02245972,2066.3,2065.3,3.11533436]
[1773318190037,3.02245972,2066.1,2065.3,0.00362579]
[1773318190333,3.02245972,2065.9,2065.3,0.00362579]
[1773318190736,3.02245972,2065.8,2065.3,3.11896015]
[1773318191234,0.00517338,2066.3,2065.3,3.11896015]
[1773318191235,3.02245972,2066.2,2065.3,3.11896015]
[1773318191533,3.02245972,2066.0,2065.3,3.11896015]
[1773318192132,3.02245972,2066.0,2065.3,0.00362579]
[1773318193734,3.02245972,2065.8,2065.3,3.11896015]
[1773318193929,3.02245972,2066.0,2065.3,3.11896015]
[1773318194341,3.02245972,2066.0,2065.0,3.11533436]
[1773318194937,3.02245972,2065.8,2064.8,3.11533436]
[1773318195439,3.02245972,2065.7,2064.8,3.11988719]
[1773318195639,3.02245972,2065.7,2065.3,3.11533436]
[1773318195840,3.02245972,2065.9,2065.3,3.11533436]
[1773318196835,3.02245972,2065.9,2065.4,1.30204807]
[1773318197037,3.02245972,2066.2,2065.5,3.11533436]
[1773318197238,3.02245972,2066.1,2065.5,3.11533436]
[1773318197443,3.02245972,2066.1,2065.3,3.11533436]
[1773318198340,3.02245972,2066.1,2065.5,3.11533436]
[1773318198743,3.02245972,2066.1,2065.3,4.41738243]
[1773318198945,3.0276331,2066.3,2065.6,3.11533436]
[1773318199146,3.02245972,2066.0,2065.3,3.11533436]
[1773318200645,2.88815764,2065.8,2065.1,3.04730827]
[1773318200948,2.88815764,2065.6,2064.9,3.04730827]
[1773318203355,2.88815764,2065.6,2064.8,0.00455283]
[1773318203543,2.88815764,2065.6,2064.8,3.0518611]
[1773318204240,2.88815764,2065.6,2064.8,3.2939711]
[1773318205045,2.88815764,2065.8,2064.8,3.2939711]
[1773318205242,2.11498967,2066.3,2065.1,3.04730827]
[1773318205243,2.88815764,2066.0,2065.1,3.04730827]
[1773318206047,2.88815764,2066.2,2065.3,3.28955827]
[1773318206243,2.89333102,2066.3,2065.5,3.29078827]
[1773318206942,2.89333102,2066.3,2065.5,3.04730827]
[1773318207143,2.89333102,2066.3,2065.1,3.04730827]
[1773318208463,2.88815764,2065.9,2064.9,3.04730827]
[1773318208752,2.88815764,2065.7,2064.8,0.00455283]
[1773318208952,2.88815764,2065.7,2064.8,3.0518611]
[1773318209154,2.88815764,2065.7,2064.8,0.00455283]
[1773318209456,3.13016764,2065.7,2064.8,3.0518611]
[1773318209746,2.88815764,2065.5,2064.8,3.0518611]
[1773318210052,2.88815764,2065.5,2064.8,3.2939711]
[1773318210947,2.88815764,2065.5,2064.8,3.0518611]
[1773318212254,2.88815764,2065.9,2065.0,3.04730827]
[1773318212943,2.88815764,2065.7,2064.8,3.0518611]
[1773318214552,2.88815764,2065.5,2064.8,3.0518611]
[1773318216954,2.88815764,2065.8,2064.8,3.2939711]
[1773318217950,2.88815764,2066.2,2065.3,3.04730827]
[1773318218151,2.88815764,2066.0,2065.3,3.04730827]
[1773318219551,2.88815764,2066.0,2065.3,3.28941827]
[1773318219957,2.88815764,2066.2,2065.3,3.04730827]
[1773318220859,2.88815764,2066.2,2065.3,3.29206827]
[1773318221152,2.88815764,2066.2,2065.3,3.04730827]
[1773318222151,2.88815764,2066.0,2065.3,3.04730827]
[1773318223151,2.88815764,2065.9,2065.1,3.04730827]
[1773318223647,2.9059447,2065.8,2065.1,3.04730827]
[1773318224751,2.9059447,2066.1,2065.1,3.04730827]
[1773318225553,2.9059447,2066.1,2065.3,3.18879719]
[1773318227954,2.9059447,2066.1,2065.3,3.43203719]
[1773318228157,2.9059447,2066.1,2065.3,3.43109719]
[1773318228356,2.9059447,2066.1,2065.3,3.18879719]
[1773318228556,2.9059447,2066.1,2065.3,3.43260719]
[1773318228752,2.9059447,2066.1,2065.3,3.18879719]
[1773318229862,2.9059447,2066.1,2065.1,3.18879719]
[1773318230259,3.16144898,2065.9,2064.9,2.88668061]
[1773318230466,3.16144898,2065.7,2064.9,2.88668061]
[1773318232369,3.16144898,2065.7,2064.8,0.00455283]
[1773318232663,3.16144898,2065.7,2064.8,2.89123344]
[1773318234467,3.16144898,2065.5,2064.8,2.89123344]
[1773318234764,3.16144898,2065.5,2064.8,0.00455283]
[1773318235267,3.16144898,2065.5,2064.8,2.89123344]
[1773318236467,3.16144898,2065.4,2064.8,2.89123344]
[1773318236865,3.16144898,2065.5,2064.8,2.89123344]
[1773318239064,13.17944898,2065.5,2064.8,2.89123344]
[1773318239269,3.16144898,2065.4,2064.8,2.89123344]
[1773318239967,13.17944898,2065.6,2064.8,2.89123344]
[1773318240267,3.16144898,2065.6,2064.8,2.89123344]
[1773318241773,3.16144898,2065.6,2064.8,0.00455283]
[1773318242678,3.16144898,2065.6,2064.8,2.89123344]
[1773318243174,3.16144898,2065.4,2064.8,2.89123344]
[1773318244278,3.16144898,2065.5,2064.8,2.89123344]
[1773318244477,3.16144898,2065.6,2064.8,2.89123344]
[1773318245477,3.16144898,2065.6,2064.8,0.00455283]
[1773318246379,3.16144898,2065.6,2064.8,2.89123344]
[1773318247282,3.16144898,2065.6,2064.8,0.00455283]
[1773318247979,3.16144898,2065.6,2064.8,2.89123344]
[1773318248176,13.17944898,2065.5,2064.8,2.89123344]
[1773318248482,3.16144898,2065.5,2064.8,2.89123344]
[1773318248780,4.26148986,2066.1,2064.8,2.89123344]
[1773318248781,3.16144898,2066.0,2064.8,2.89123344]
[1773318248981,13.17944898,2065.7,2064.8,2.89123344]
[1773318249281,3.16144898,2065.7,2064.8,2.89123344]
[1773318250278,3.16144898,2065.9,2065.0,2.88668061]
[1773318252078,3.16662236,2066.3,2065.2,2.88668061]
[1773318252983,3.16662236,2066.3,2065.4,2.88668061]
[1773318253185,0.00517338,2066.3,2065.4,2.88668061]
[1773318254683,0.00517338,2066.3,2065.4,5.2391969]
[1773318254884,0.00517338,2066.3,2065.5,3.13011061]
[1773318255085,3.16662236,2066.3,2065.5,2.88668061]
[1773318265389,3.16662236,2066.3,2065.4,3.1709134]
[1773318266395,3.16662236,2066.3,2065.4,3.4150934]
[1773318270195,3.16662236,2066.3,2065.4,3.4156334]
[1773318270807,3.16662236,2066.3,2065.4,3.1709134]
[1773318271001,3.16662236,2066.3,2065.3,3.1709134]
[1773318274207,3.16662236,2066.3,2065.5,3.1709134]
[1773318278307,3.16662236,2066.3,2065.5,3.4171634]
[1773318279610,3.16662236,2066.3,2065.5,3.4129634]
[1773318283507,3.16662236,2066.3,2065.5,3.1709134]
[1773318283713,3.16662236,2066.3,2065.5,3.4159334]
[1773318283908,3.16662236,2066.3,2065.5,3.1709134]
[1773318284315,3.16662236,2066.3,2065.5,0.24583]
[1773318284515,3.16662236,2066.3,2065.4,3.14670849]
[1773318284915,2.93114387,2066.1,2065.4,3.14670849]
[1773318285115,2.93114387,2066.1,2065.3,3.14670849]
[1773318289109,2.93114387,2065.9,2064.8,7.58065488]
[1773318289314,2.93114387,2065.7,2064.9,3.14670849]
[1773318289514,2.93114387,2065.7,2064.8,0.00455283]
[1773318289713,2.93114387,2065.5,2064.8,0.00455283]
[1773318291014,2.92734084,2065.0,2064.3,3.00505803]
[1773318291914,2.92734084,2065.0,2064.3,3.00993522]
[1773318292814,2.92734084,2064.8,2063.7,3.00505803]
[1773318293819,2.93347755,2064.8,2063.7,3.01070679]
[1773318295113,2.92734084,2064.4,2063.4,3.00505803]
[1773318295314,2.92734084,2064.2,2063.1,3.00505803]
[1773318296121,2.92734084,2064.2,2063.1,3.01041117]
[1773318300418,0.00613671,2064.8,2063.3,3.00505803]
[1773318300620,2.92734084,2064.7,2063.9,3.00505803]
[1773318301424,2.92734084,2064.7,2063.6,3.00505803]
[1773318304727,2.92734084,2064.7,2063.6,3.24795864]
[1773318305325,2.92734084,2064.7,2063.6,3.73397864]
[1773318305628,2.92734084,2064.7,2063.6,3.49020864]
[1773318305828,2.92734084,2064.7,2063.6,3.73239864]
[1773318306424,2.93347755,2064.8,2063.6,3.73239864]
[1773318307317,0.00613671,2064.8,2063.6,3.73239864]
[1773318307720,2.92734084,2065.3,2064.8,3.24307132]
[1773318308123,2.92734084,2065.3,2064.3,3.00505803]
[1773318308326,2.92734084,2065.3,2064.3,3.25146803]
[1773318308727,2.93349773,2065.3,2064.3,3.25641192]
[1773318309430,2.93349773,2065.3,2064.3,3.01000192]
[1773318309626,2.93349773,2065.3,2064.3,3.25458192]
[1773318310529,2.93349773,2065.3,2064.3,3.01000192]
[1773318310729,2.93349773,2065.3,2064.3,3.25939192]
[1773318311128,2.93349773,2065.3,2064.3,3.01000192]
[1773318311730,2.93349773,2065.3,2064.3,3.25296192]
[1773318311930,2.93349773,2065.3,2064.3,3.01000192]
[1773318312928,2.93349773,2065.3,2064.3,3.25562192]
[1773318315437,2.93349773,2065.3,2064.5,3.00505803]
[1773318315633,2.93349773,2065.3,2064.5,3.25401803]
[1773318317432,2.93349773,2065.3,2064.5,3.00505803]
[1773318320238,3.17638439,2065.7,2064.9,3.26275458]
[1773318320630,3.17638439,2065.7,2064.9,3.02066458]
[1773318321343,3.18169256,2065.7,2064.9,3.02066458]
[1773318321838,3.18169256,2065.7,2064.9,3.26296458]
[1773318322039,3.18169256,2065.7,2064.9,3.02066458]
[1773318323340,3.18169256,2065.7,2064.9,3.26453458]
[1773318323741,3.18169256,2065.7,2064.9,3.26751458]
[1773318326550,3.18169256,2065.7,2064.9,3.26778458]
[1773318326737,3.18169256,2065.7,2064.9,3.26491458]
[1773318334146,0.00530817,2065.7,2064.9,3.26491458]
[1773318334341,3.18169256,2065.7,2064.9,3.26491458]
[1773318337558,3.18169256,2065.7,2065.3,3.02066458]
[1773318337858,3.18169256,2065.7,2065.3,3.29754458]
[1773318341559,3.18169256,2065.7,2065.0,1.30189041]
[1773318341560,3.18169256,2065.7,2065.4,4.57706499]
[1773318342059,3.17638439,2065.9,2065.5,3.02066458]
[1773318342560,3.17638439,2065.9,2065.5,3.26689458]
[1773318343059,3.18039716,2065.9,2065.5,3.26689458]
[1773318343263,3.18039716,2065.9,2065.5,3.26311458]
[1773318343759,3.18039716,2065.9,2065.5,3.02066458]
[1773318343958,0.00401277,2065.9,2065.5,3.02066458]
[1773318344159,0.00401277,2065.9,2065.5,3.26376458]
[1773318344561,3.12695526,2066.4,2065.8,4.46807693]
[1773318344861,3.12695526,2066.4,2065.8,3.16618652]
[1773318345462,3.13298798,2066.4,2065.8,3.17183535]
[1773318345854,3.12695526,2066.2,2065.8,3.17183535]
[1773318346056,3.12695526,2066.2,2065.8,0.00564883]
[1773318346255,3.12695526,2066.2,2065.6,4.46807693]
[1773318346256,3.12695526,2066.2,2065.6,3.16618652]
[1773318347164,3.12695526,2066.2,2065.6,3.17037205]
[1773318347865,3.12695526,2066.2,2065.6,0.00418553]
[1773318348264,3.12695526,2066.2,2065.6,3.17037205]
[1773318349169,3.12695526,2066.2,2065.6,0.00418553]
[1773318349772,3.12695526,2066.2,2065.6,3.17037205]
[1773318350069,3.12695526,2066.2,2065.6,0.00418553]
[1773318351571,3.12695526,2066.2,2065.6,4.43542029]
[1773318351775,3.12695526,2066.2,2065.7,3.12934435]
[1773318351965,3.12695526,2066.2,2065.6,1.30607594]
[1773318351966,3.12695526,2066.2,2065.9,3.12934435]
[1773318353975,3.12695526,2066.2,2065.6,4.43542029]
[1773318354172,3.12695526,2066.2,2065.6,0.00418553]
[1773318354173,4.42884567,2066.2,2065.6,0.00418553]
[1773318354473,3.11007518,2066.1,2065.6,0.00418553]
[1773318355267,3.11007518,2066.1,2065.6,3.13352988]
[1773318356370,3.11007518,2066.1,2065.7,3.12934435]
[1773318356569,3.11007518,2066.3,2065.9,3.12934435]
[1773318356873,3.11007518,2066.3,2065.6,4.43542029]
[1773318357175,3.11007518,2066.1,2065.6,0.00418553]
[1773318357672,3.11007518,2066.1,2065.6,3.13352988]
[1773318358273,3.11007518,2066.1,2065.6,0.00418553]
[1773318358573,3.11007518,2066.1,2065.6,3.13352988]
[1773318360977,3.11007518,2066.0,2065.3,4.66738873]
[1773318361176,3.11007518,2066.0,2065.4,3.12934435]
[1773318362076,3.11007518,2066.0,2065.4,3.135465]
[1773318363074,3.11007518,2065.9,2065.4,0.00612065]
[1773318363267,3.11007518,2065.9,2065.4,3.135465]
[1773318364968,3.11007518,2066.1,2065.4,3.135465]
[1773318365275,3.11007518,2066.1,2065.5,3.12934435]
[1773318366682,3.11007518,2066.2,2065.5,3.12934435]
[1773318367379,3.11007518,2065.9,2065.4,3.135465]
[1773318368977,3.11007518,2066.1,2065.5,3.12934435]
[1773318370478,13.02507518,2066.2,2065.5,3.12934435]
[1773318370783,13.02507518,2066.2,2065.4,1.30801106]
[1773318370784,4.41196559,2066.1,2065.4,0.00612065]
[1773318371080,3.11007518,2065.9,2065.0,3.12934435]
[1773318371276,3.11007518,2065.7,2065.1,3.12934435]
[1773318372082,3.11007518,2065.7,2065.1,3.13338535]
[1773318374077,3.11007518,2065.9,2065.3,3.12934435]
[1773318374276,9.94823246,2066.5,2065.5,3.12934435]
[1773318374277,13.03607518,2066.1,2065.5,3.12934435]
[1773318374478,3.11007518,2066.1,2065.5,3.12934435]
[1773318375785,3.11007518,2066.2,2065.5,3.12934435]
[1773318377380,3.11007518,2066.0,2065.3,3.12934435]
[1773318381092,3.10305609,2066.2,2065.3,3.12934435]
[1773318381391,3.10305609,2066.1,2065.3,3.12934435]
[1773318390694,3.10305609,2066.3,2065.5,3.00200792]
[1773318390998,3.10305609,2066.3,2065.7,3.00200792]
[1773318391697,3.10305609,2066.3,2065.6,1.3017344]
[1773318391698,3.10305609,2066.3,2065.5,3.00200792]
[1773318394996,3.10305609,2066.3,2065.3,3.00200792]
[1773318398091,3.10305609,2066.1,2065.3,3.00200792]
[1773318403311,3.10305609,2066.0,2065.3,3.00200792]
[1773318405699,3.10305609,2066.0,2065.3,3.00048896]
[1773318408910,3.07949438,2066.3,2065.4,3.00048896]
[1773318409106,3.07949438,2066.1,2065.4,3.00048896]
[1773318413314,3.07949438,2066.1,2065.5,3.11250328]
[1773318416421,3.07949438,2066.1,2065.2,10.68860533]
[1773318416617,3.07949438,2066.1,2065.3,3.11250328]
[1773318417816,3.07949438,2066.1,2065.2,3.11250328]
[1773318418016,2.99152237,2065.9,2065.1,0.004041]
[1773318418216,2.99152237,2065.9,2065.1,3.11654428]
[1773318420513,2.99152237,2065.9,2065.2,3.11250328]
[1773318424020,2.99152237,2065.9,2065.1,0.004041]
[1773318424221,2.99152237,2065.9,2065.1,3.11654428]
[1773318430727,2.99152237,2065.9,2065.2,3.11250328]
[1773318432825,2.99152237,2065.9,2065.1,0.004041]
[1773318433026,2.99152237,2065.8,2065.1,3.11654428]
[1773318441640,2.99152237,2065.8,2065.1,0.004041]
[1773318441838,2.93933974,2065.6,2065.1,0.004041]
[1773318442032,2.93933974,2065.5,2064.8,2.88282106]
[1773318442237,2.93933974,2065.3,2064.7,2.88282106]
[1773318443038,2.93933974,2065.3,2064.7,2.88820727]
[1773318444238,14.28601618,2065.8,2064.4,2.88282106]
[1773318444239,2.93933974,2064.9,2064.4,2.88282106]
[1773318444539,2.93933974,2064.7,2064.2,2.88282106]
[1773318444747,2.93933974,2064.7,2064.1,2.88282106]
[1773318445235,2.94551006,2064.7,2064.1,2.88807391]
[1773318446239,2.94551006,2064.7,2064.1,0.00525285]
[1773318449147,2.94551006,2064.7,2064.1,2.88807391]
[1773318449342,2.94551006,2064.7,2064.1,4.19018041]
[1773318449647,2.93933974,2064.9,2064.6,2.88282106]
[1773318449848,2.93933974,2064.9,2064.5,4.18492756]
[1773318450144,2.93933974,2064.9,2064.5,2.88282106]
[1773318450546,2.9445948,2064.9,2064.5,2.88282106]
[1773318452741,2.9445948,2064.9,2064.1,2.88807391]
[1773318452742,2.93933974,2064.6,2064.1,2.88807391]
[1773318452944,2.93933974,2064.6,2064.3,2.88282106]
[1773318454850,2.93933974,2064.6,2064.2,4.18492756]
[1773318455350,2.93933974,2064.6,2064.2,2.88282106]
[1773318456444,2.93933974,2064.6,2064.2,4.18492756]